{"text_format":"1","workbook":"xlsx","n_sheets":1,"sheets":["戸建・併用住宅用"],"not_rendered":{"charts":0,"images":1,"macros":1,"external_links":0,"defined_names":10,"comments":0,"pivot_tables":0},"unopened":[],"bounds":{"document_bytes":16777216,"sheet_cells":100000,"rows_first":2000,"rows_last":500,"rows_between":2000,"halvings":0,"cell_chars":16384,"cell_head_chars":4096},"cells_cut":0,"cells_raw":0,"read":"whole","date_system":"1900"}

{"sheet":"戸建・併用住宅用","index":0,"n_rows":499,"n_cols":32,"rows_kept":499,"cut":false,"hidden":false,"merged":[[30,1,30,3],[30,4,30,5],[28,6,28,7],[4,9,4,11],[6,2,6,6],[19,7,19,8],[18,2,19,3],[18,4,18,6],[15,9,19,11],[6,1,15,1],[7,2,7,6],[11,7,11,8],[7,7,7,8],[13,2,14,3],[13,4,13,6],[10,9,10,11],[10,2,10,6],[17,4,17,6],[22,2,22,6],[5,9,5,10],[24,7,24,8],[18,7,18,8],[21,7,21,8],[20,7,20,8],[16,18,17,19],[16,20,17,20],[3,1,3,3],[34,29,37,29],[34,28,37,28],[34,26,37,26],[34,27,37,27],[4,4,4,6],[5,1,5,3],[5,4,5,5],[4,1,4,3],[4,7,4,8],[20,4,21,6],[16,1,19,1],[21,16,21,17],[20,14,21,14],[20,15,20,17],[22,16,24,17],[7,9,7,11],[8,7,8,8],[8,9,8,11],[8,2,8,6],[13,9,14,11],[8,19,9,20],[48,1,48,3],[67,4,67,5],[68,4,68,5],[43,10,44,10],[43,8,44,8],[50,6,52,6],[50,7,52,7],[50,8,52,8],[67,2,67,3],[68,2,68,3],[66,4,66,5],[66,1,68,1],[66,2,66,3],[45,4,46,4],[45,7,46,7],[55,6,56,7],[55,8,56,10],[45,1,45,3],[43,7,44,7],[20,2,21,3],[19,4,19,6],[50,1,50,3],[61,1,64,1],[54,4,54,10],[50,9,52,9],[51,5,52,5],[51,4,52,4],[49,4,50,4],[49,5,50,5],[61,2,62,2],[54,1,54,3],[55,4,56,5],[57,4,59,5],[57,8,59,8],[61,3,61,5],[61,6,61,10],[52,1,52,3],[50,10,52,10],[47,1,47,3],[21,9,21,10],[20,1,21,1],[23,7,23,8],[30,7,30,8],[105,24,107,24],[106,17,106,21],[107,17,107,21],[105,14,107,16],[105,17,105,21],[105,22,105,23],[106,22,106,23],[107,22,107,23],[104,14,104,24],[118,23,118,24],[119,15,119,22],[120,15,120,22],[115,15,115,17],[116,15,117,17],[116,18,116,19],[116,21,116,22],[108,22,108,23],[110,22,110,23],[116,23,116,24],[117,18,117,19],[117,21,117,22],[108,24,110,24],[111,14,111,23],[108,14,110,16],[108,17,108,21],[109,22,109,23],[109,17,109,21],[117,23,117,24],[51,11,55,11],[48,4,48,10],[126,15,126,17],[126,18,126,19],[127,15,127,17],[127,18,127,19],[118,15,118,20],[128,14,128,17],[128,18,128,19],[115,14,120,14],[125,18,125,19],[125,14,125,17],[124,14,124,17],[124,18,124,19],[110,17,110,21],[61,11,62,11],[118,21,118,22],[57,6,59,6],[57,7,59,7],[22,18,23,18],[22,15,24,15],[29,1,29,3],[29,4,29,5],[35,8,38,8],[35,9,38,9],[35,10,38,10],[30,9,30,10],[31,9,31,11],[31,6,31,8],[31,4,31,5],[34,1,34,3],[36,1,36,3],[31,1,31,3],[25,7,25,8],[25,2,25,6],[23,2,23,6],[28,1,28,3],[28,4,28,5],[29,6,29,7],[22,7,22,8],[38,1,38,4],[34,5,34,10],[35,5,38,5],[15,7,15,8],[16,7,16,8],[17,7,17,8],[24,2,24,6],[45,11,46,11],[39,1,39,3],[41,1,41,3],[42,1,42,3],[44,1,44,3],[41,10,42,11],[43,11,44,11],[45,5,46,5],[43,1,43,3],[46,1,46,3],[45,8,46,8],[45,10,46,10],[39,4,39,11],[43,4,44,4],[43,5,44,5],[41,4,42,5],[41,7,42,8],[35,6,38,6],[35,7,38,7],[20,9,20,10],[16,14,17,17],[20,18,20,20],[22,20,24,20],[25,15,25,20],[3,4,3,6],[5,7,5,8],[9,2,9,6],[22,1,25,1],[14,4,14,6],[15,2,15,6],[10,7,10,8],[6,7,6,8],[6,9,6,11],[11,9,11,11],[12,7,12,8],[12,9,12,11],[11,2,11,6],[12,2,12,6],[16,2,17,3],[16,4,16,6],[9,7,9,8],[9,9,9,11],[13,7,13,8],[14,7,14,8]]}
[null,"■　住宅用一次エネルギー消費量計算書",null,null,null,null,null,null,null,null,null,"Ver.10.1"]
[]
[null,"1. 一次エネルギー消費量計算結果・断熱性能"]
[null,"住宅タイプの名称",null,null,{"$f":"IF(ISERROR(LEFT(E106,(LEN(E106)-8))),\"\",LEFT(E106,(LEN(E106)-8)))","v":""},null,null,"建て方",{"$f":"IF(ISERROR(MID(E106,(LEN(E106)-5),4)),\"\",MID(E106,(LEN(E106)-5),4))","v":""},"地域の区分",{"$f":"IF(ISERROR(-LOOKUP(1,-LEFT(MID(SUBSTITUTE(D108,\"区分\",\"*\",2),FIND(\"*\",SUBSTITUTE(D108,\"区分\",\"*\",2))+1,3),ROW($1:$16)))),\"\",-LOOKUP(1,-LEFT(MID(SUBSTITUTE(D108,\"区分\",\"*\",2),FIND(\"*\",SUBSTITUTE(D108,\"区分\",\"*\",2))+1,3),ROW($1:$16))))","v":""},"地域",null," 【本計算書の使用方法と注意事項】"]
[null,"断熱性能評価手法",null,null,{"$f":"IF(J8=\"\",\"\",IF(OR(J5=R136,J5=R137,J5=R138,ISERROR(D135)),S139,IF(MID(D135,14,13)=\"当該住戸の外皮面積を用いて\",S135,IF(MID(D135,14,4)=\"仕様基準\",S136,IF(MID(D135,14,6)=\"誘導仕様基準\",S137,IF(MID(D135,14,13)=\"当該住戸の外皮面積を用いず\",S138,S139))))))","v":""},null,null,"一次エネルギー評価手法",null,{"$f":"IF(J8=\"\",R139,R135)","v":"選択するかPDFを読込んでください"},null,null,null," ①　本計算書を添付することで、BELS設計内容説明書 第二面の数値記入を省略することができます。"]
[null,"計算対象床面積（合計）",null,null,{"$f":"IF(ISERROR(-LOOKUP(1,-RIGHT(LEFT(D107,LEN(D107)-1),ROW($1:$16)))),\"\",-LOOKUP(1,-RIGHT(LEFT(D107,LEN(D107)-1),ROW($1:$16))))","v":""},null,"㎡","非住宅の評価対象床面積",null,{"$f":"IF(I4=\"\",\"\",IF(I4=\"戸建住宅\",0,IF(S17=\"\",0,S17)))","v":""},null,"㎡",null," ②　本計算書を再利用すると計算式が削除されている可能性があるため、常に新しい計算書をご使用ください。"]
[null,"一次エネルギー消費量","内訳",null,null,null,null,"設計一次[MJ/年]",null,"基準一次[MJ/年]",null,null,null," ②　BELS評価プレビューは端数処理等の影響によってBELS評価書と数値が変わる可能性があります。"]
[null,null,"暖房設備",null,null,null,null,{"$f":"IF(ISERROR(-LOOKUP(1,-LEFT(MID(D109,5,15),ROW($1:$16)))),\"\",-LOOKUP(1,-LEFT(MID(D109,5,15),ROW($1:$16))))","v":""},null,{"$f":"IF(ISERROR(-LOOKUP(1,-RIGHT(D109,ROW($1:$16)))),\"\",-LOOKUP(1,-RIGHT(D109,ROW($1:$16))))","v":""}]
[null,null,"冷房設備",null,null,null,null,{"$f":"IF(ISERROR(-LOOKUP(1,-LEFT(MID(D110,5,15),ROW($1:$16)))),\"\",-LOOKUP(1,-LEFT(MID(D110,5,15),ROW($1:$16))))","v":""},null,{"$f":"IF(ISERROR(-LOOKUP(1,-RIGHT(D110,ROW($1:$16)))),\"\",-LOOKUP(1,-RIGHT(D110,ROW($1:$16))))","v":""},null,null,null," 【本計算書の作成方法】",null,null,null,null,null,"ＰＤＦ読込"]
[null,null,"換気設備",null,null,null,null,{"$f":"IF(ISERROR(-LOOKUP(1,-LEFT(MID(D111,5,15),ROW($1:$16)))),\"\",-LOOKUP(1,-LEFT(MID(D111,5,15),ROW($1:$16))))","v":""},null,{"$f":"IF(ISERROR(-LOOKUP(1,-RIGHT(D111,ROW($1:$16)))),\"\",-LOOKUP(1,-RIGHT(D111,ROW($1:$16))))","v":""},null,null,null," ①　右のボタンで一次エネルギー消費量計算結果のPDFを読み込む。"]
[null,null,"給湯設備",null,null,null,null,{"$f":"IF(ISERROR(-LOOKUP(1,-LEFT(MID(D112,5,15),ROW($1:$16)))),\"\",-LOOKUP(1,-LEFT(MID(D112,5,15),ROW($1:$16))))","v":""},null,{"$f":"IF(ISERROR(-LOOKUP(1,-RIGHT(D112,ROW($1:$16)))),\"\",-LOOKUP(1,-RIGHT(D112,ROW($1:$16))))","v":""},null,null,null,"※ PDFが読み込めないときは、「1. 一次エネルギー消費量計算結果」"]
[null,null,"照明設備",null,null,null,null,{"$f":"IF(ISERROR(-LOOKUP(1,-LEFT(MID(D113,5,15),ROW($1:$16)))),\"\",-LOOKUP(1,-LEFT(MID(D113,5,15),ROW($1:$16))))","v":""},null,{"$f":"IF(ISERROR(-LOOKUP(1,-RIGHT(D113,ROW($1:$16)))),\"\",-LOOKUP(1,-RIGHT(D113,ROW($1:$16))))","v":""},null,null,null,"　 の黄色セルに該当のPDFデータを入力してください。"]
[null,null,"その他の設備",null,null,null,null,{"$f":"IF(ISERROR(-LOOKUP(1,-LEFT(MID(D114,7,15),ROW($1:$16)))),\"\",-LOOKUP(1,-LEFT(MID(D114,7,15),ROW($1:$16))))","v":""},null,{"$f":"IF(ISBLANK(H13),\"\",H13)","v":""},null,null,null,"※ 住宅名称、太陽光容量等に変更がある場合は修正してください。"]
[null,null,"発電設備の発電量\nのうち自家消費分",null,"太陽光発電（PV）",null,null,{"$f":"IF(ISERROR(-LOOKUP(1,-RIGHT(LEFT(D115,LEN(D115)-3),ROW($1:$16)))),\"\",IF(RIGHT(LEFT(D115,LEN(D115)-3),3)=\"---\",\"\",LOOKUP(1,-RIGHT(LEFT(D115,LEN(D115)-3),ROW($1:$16)))))","v":""},null,{"$f":"IF(SUM(H14:I15)=0,\"\",\"自家消費分合計 ＝ \"&SUM(H14:I15))","v":""}]
[null,null,null,null,"コージェネレーション設備（CGS）",null,null,{"$f":"IF(ISERROR(-LOOKUP(1,-RIGHT(LEFT(D116,LEN(D116)-3),ROW($1:$16)))),\"\",IF(RIGHT(LEFT(D116,LEN(D116)-3),3)=\"---\",\"\",LOOKUP(1,-RIGHT(LEFT(D116,LEN(D116)-3),ROW($1:$16)))))","v":""},null,null,null,null,null," ②　併用住宅で、非住宅部分と太陽光発電設備を共有している場合、非住宅の評価対象床面積を入力してください。"]
[null,null,"コージェネレーション設備の売電量に係る控除量",null,null,null,null,{"$f":"IF(ISERROR(-LOOKUP(1,-RIGHT(LEFT(D117,LEN(D117)-3),ROW($1:$16)))),\"\",IF(RIGHT(LEFT(D117,LEN(D117)-3),3)=\"---\",\"\",LOOKUP(1,-RIGHT(LEFT(D117,LEN(D117)-3),ROW($1:$16)))))","v":""},null,"発電設備が無い場合は\n０を記入、又は空欄とする\n\n",null,null,null,"　　　（ZEH等の適合判断では、総発電量を床面積按分した値を太陽光のエネルギー消費削減分の上限とします）"]
[null,"参考値","発電量［MJ/年］",null,"コージェネレーション",null,null,{"$f":"IF(ISERROR(-LOOKUP(1,-LEFT(E150,ROW($1:$16)))),\"\",-LOOKUP(1,-LEFT(E150,ROW($1:$16))))","v":""},null,null,null,null,null,null,"太陽光発電を共有する非住宅の評価対象床面積",null,null,null,null,null,"㎡"]
[null,null,null,null,"太陽光発電",null,null,{"$f":"IF(ISERROR(-LOOKUP(1,-LEFT(E151,ROW($1:$16)))),\"\",-LOOKUP(1,-LEFT(E151,ROW($1:$16))))","v":""}]
[null,null,"売電量［MJ/年］",null,"コージェネレーション",null,null,{"$f":"IF(ISERROR(-LOOKUP(1,-LEFT(E152,ROW($1:$16)))),\"\",-LOOKUP(1,-LEFT(E152,ROW($1:$16))))","v":""}]
[null,null,null,null,"太陽光発電",null,null,{"$f":"IF(ISERROR(-LOOKUP(1,-LEFT(E153,ROW($1:$16)))),\"\",-LOOKUP(1,-LEFT(E153,ROW($1:$16))))","v":""},null,null,null,null,null," ③　「2. BELS評価申請項目」を入力、確認する。下の選択肢、又は左の表で直接選択してください。"]
[null,"ＢＥＩ","建築物エネルギー\n消費性能基準",null,"一次エネルギー消費量（その他除く）",null,null,"設計一次[GJ/年]",null,"基準一次[GJ/年]",null,"BEI",null,null,"選択","再エネ設備",null,null,"目安光熱費"]
[null,null,null,null,null,null,null,{"$f":"IF(SUM(AA180)=0,\"\",SUM(AA180))","v":""},null,{"$f":"IF(SUM(AA179)=0,\"\",SUM(AA179))","v":""},null,{"$f":"IF(SUM(AA181)=0,\"\",SUM(AA181))","v":""},null,null,null,"容量表示","太陽光以外の再エネ設備",null,"表示","ガス設備","（参考値※）",{"$f":"IF(OR(J32=\"都市ガス\",J32=\"ＬＰガス\"),\"※燃料単価\",\"\")","v":""}]
[null,"参考値"," 消費電力量　　  [kWh/年]",null,null,null,null,{"$f":"IF(ISERROR(-LOOKUP(1,-LEFT(E146,ROW($1:$16)))),\"\",-LOOKUP(1,-LEFT(E146,ROW($1:$16))))","v":""},null,"断熱性能","ＵＡ","ηＡＣ",null,null,null,"太陽光が\nある場合\n希望する","太陽熱：なし\nその他：なし",null,"希望する","都市ガス",{"$f":"IF(AND(H23=\"\",H24=\"\",H25=\"\"),\"\",IF(J32=\"都市ガス\",\"約\"&TEXT(ROUNDUP((H23*27+H24/46.05*156+H25/37.04*88)/10000,1),\"####0.0\")&\"万円/年\",IF(J32=\"ＬＰガス\",\"約\"&TEXT(ROUNDUP((H23*27+H24/104.22*706+H25/37.04*88)/10000,1),\"####0.0\")&\"万円/年\",\"\")))","v":""},{"$f":"IF(OR(J32=\"都市ガス\",J32=\"ＬＰガス\"),\"電気:27円/kWh\",\"\")","v":""}]
[null,null,"ガス消費量 　　 [MJ/年]",null,null,null,null,{"$f":"IF(ISERROR(-LOOKUP(1,-LEFT(E147,ROW($1:$16)))),\"\",-LOOKUP(1,-LEFT(E147,ROW($1:$16))))","v":""},null,"設計値",{"$f":"IF(ISERROR(-LOOKUP(1,-RIGHT(LEFT(E136,LEN(E136)-5),ROW($1:$16)))),\"\",-LOOKUP(1,-RIGHT(LEFT(E136,LEN(E136)-5),ROW($1:$16))))","v":""},{"$f":"IF(ISERROR(-LOOKUP(1,-LEFT(E137,ROW($1:$16)))),\"\",-LOOKUP(1,-LEFT(E137,ROW($1:$16))))","v":""},null,null,null,null,null,null,null,"ＬＰガス",null,{"$f":"IF(OR(J32=\"都市ガス\",J32=\"ＬＰガス\"),\"都市:156円/㎥\",\"\")","v":""}]
[null,null,"灯油消費量 　　 [MJ/年]",null,null,null,null,{"$f":"IF(ISERROR(-LOOKUP(1,-LEFT(E148,ROW($1:$16)))),\"\",-LOOKUP(1,-LEFT(E148,ROW($1:$16))))","v":""},null,"基準値",{"$f":"IF(ISERROR(VLOOKUP(K4,O146:Q153,2)),\"\",VLOOKUP(K4,O146:Q153,2))","v":""},{"$f":"IF(ISERROR(VLOOKUP(K4,O146:Q153,3)),\"\",VLOOKUP(K4,O146:Q153,3))","v":""},null,null,null,null,null,null,"希望しない","－",null,{"$f":"IF(OR(J32=\"都市ガス\",J32=\"ＬＰガス\"),\"LP:706円/㎥\",\"\")","v":""},null,null,null,null,"非表示（Workエリア）"]
[null,null,"コージェネ設備の売電量に係るガス消費量の控除量　[MJ/年]",null,null,null,null,{"$f":"IF(ISERROR(-LOOKUP(1,-LEFT(E149,ROW($1:$16)))),\"\",-LOOKUP(1,-LEFT(E149,ROW($1:$16))))","v":""},null,"強化外皮基準",{"$f":"IF(ISERROR(VLOOKUP(K4,O146:R153,4)),\"\",VLOOKUP(K4,O146:R153,4))","v":""},null,null,null,null,"左の表で直接選択",null,null,null,null,null,{"$f":"IF(OR(J32=\"都市ガス\",J32=\"ＬＰガス\"),\"灯油:88円/ℓ\",\"\")","v":""},null,null,null,null,0,"評価申請選択（1-4）：初期値は0"]
[]
[null,"2. BELS評価申請項目"]
[null,"再エネ設備の有無",null,null,{"$f":"IF(J8=\"\",\"\",IF(OR(AA30,AB30,AC30),Z135,IF(OR(AA26=1,AA26=2,AA26=3),Z136,Z137)))","v":""},null,"種類（複数選択可能）",null,null,null,null,"(　　　　　　)",null,{"$f":"IF(AC30,T139,\"\")","v":""},null,null,null,null,null,null,null,null,null,null,null,null,{"$f":"IF(OR(H18=\"\",H18=0),FALSE,TRUE)","v":false},{"$f":"IF(S191=\"無し\",FALSE,TRUE)","v":false},null,"管理用"]
[null,"再エネ容量の表示希望",null,null,{"$f":"IF(J8=\"\",\"\",IF(E29=Z136,X138,IF(AND(H18<>\"\",H18<>0,OR(AA26=1,AA26=2,AA26=3)),X135,X137)))","v":""},null,"再エネ設備の容量・単位",null,{"$f":"IF(OR(J8=\"\",E30=X138),\"\",IF(E30=X136,\"－\",IF(P193=0,\"\",P193&\"kW\")))","v":""},{"$f":"IF(OR(J8=\"\",E30=X138),\"\",IF(E30=X136,\"－　　　\",IF(AB30,\"[㎡]\",\"\")))","v":""},{"$f":"IF(OR(J8=\"\",E30=X138),\"\",IF(E30=X136,\"－　　　\",IF(AB30,\"[L]\",\"\")))","v":""},{"$f":"IF(OR(J8=\"\",E30=X138),\"\",IF(E30=X136,\"－\",\"\"))","v":""},null,null,null,null,null,null,null,null,null,null,null,null,null,null,{"$f":"IF(OR(H18=\"\",H18=0),FALSE,TRUE)","v":false},{"$f":"IF(S191=\"無し\",FALSE,TRUE)","v":false},false,"実行用"]
[null,"エネルギーの多段階表示",null,null,{"$f":"IF(J8=\"\",\"\",IF(OR(H18=\"\",H18=0),W135,W136))","v":""},null,"「ZEHマーク」",{"$f":"IF(J8=\"\",\"\",IF(AND(K24<=K26,L24<=L25,W108>=20,W111>=100,H18>0),P135,IF(AND(K24<=K26,L24<=L25,W108>=20,W111>=75,W111<100,H18>0),P136,IF(AND(K24<=K26,L24<=L25,W108>=20),P139,P138))))","v":""},null,"ZEH Orientedの要件",null,{"$f":"IF(H31=\"\",\"\",IF(H31=P137,Y135,Y136))","v":""},null,{"$f":"IF(H31=P139,P141,IF(H31=P137,P140,\"\"))","v":""}]
[null,"目安光熱費の表示",null,null,{"$f":"IF(OR(J5=R136,J5=R137),U136,IF(J8=\"\",\"\",IF(OR(AA26=1,AA26=2),U135,IF(AA26=3,U136,U137))))","v":""},null,"ガス設備の選択",null,null,{"$f":"IF(AA26=1,V135,IF(AA26=2,V136,IF(E32=U135,V137,IF(OR(E32=U136,AA26=3),V138,\"\"))))","v":""}]
[]
[null,"3. BELS評価プレビュー",null,null,null,null,null,null,null,null,null,null,null,null,null,null,null,null,null,null,null,null,null,null,null,null,1,2,3,0]
[null,"住宅（住戸）",null,null,null,"エネルギー消費性能",null,null,null,null,null,null,null,null,null,null,null,null,null,null,null,null,null,null,null,null,"★","🌟","☆"]
[null,null,null,null,null,{"$f":"IF(AA43=3,$AC$35,IF(AA43=2,$AB$35,IF(AA43=1,$AA$35,\"\")))","v":""},"","","","",""]
[null,"物件概要"]
[null,"建物名称："]
[null,{"$f":"IF(E4=\"\",\"\",IF(OR(RIGHT(E4,9)=\" ( 戸建住宅 )\",RIGHT(E4,9)=\" ( 共同住宅 )\"),LEFT(E4,LEN(E4)-9),E4))","v":""},null,null,null,null,null,null,null,null,null,null,null,null,null,null,null,null,null,null,null,null,null,null,null,null,1,2,3,4,5,6]
[null,{"$f":"IF(K4=\"\",\"地域の区分：\",\"地域の区分：\"&K4&\"地域\")","v":"地域の区分："},null,null,"★ 再エネなしの一次エネルギー消費量削減率　　🌟 太陽光発電分の一次エネルギー消費量削減率",null,null,null,null,null,null,null,null,null,null,null,null,null,null,null,null,null,null,null,null,null,{"$f":"IF(E46=\"\",0,IF(E46>=0,1,IF(H46>=0,2,3)))","v":0},{"$f":"IF(E46=\"\",0,IF(E46>=0.1,1,IF(H46>=0.1,2,3)))","v":0},{"$f":"IF(E46=\"\",0,IF(E46>=0.2,1,IF(H46>=0.2,2,3)))","v":0},{"$f":"IF(E46=\"\",0,IF(E46>=0.3,1,IF(H46>=0.3,2,3)))","v":0},{"$f":"IF(E46=\"\",0,IF(E46>=0.4,1,IF(H46>=0.4,2,3)))","v":0},{"$f":"IF(E46=\"\",0,IF(E46>=0.5,1,IF(H46>=0.5,2,3)))","v":0}]
[null,null,null,null,null,null,null,null,null,null,null,null,null,null,null,null,null,null,null,null,null,null,null,null,null,null,null,1,2,3,4]
[null,"評価概要",null,null,"再エネなし",null,null,"再エネあり\n（自家消費分）",null,null,"再エネあり\n（自家消費分＋売電分）",null,null,null,null,null,null,null,null,null,null,null,null,null,null,null,null,{"$f":"IF(E46=\"\",0,IF(E46>=0,1,3))","v":0},{"$f":"IF(E46=\"\",0,IF(E46>=0.1,1,3))","v":0},{"$f":"IF(E46=\"\",0,IF(E46>=0.2,1,3))","v":0},{"$f":"IF(E46=\"\",0,IF(E46>=0.3,1,3))","v":0}]
[null,"評価対象：住宅",null,null,null,null,null,null,null,null,null,null,null,null,null,null,null,null,null,null,null,null,null,null,null,null,{"$f":"IF(E31=W136,AA40,\"\")","v":""},{"$f":"IF(E31=W136,AB40,IF(E31=W135,AB42,\"\"))","v":""},{"$f":"IF(E31=W136,AC40,IF(E31=W135,AC42,\"\"))","v":""},{"$f":"IF(E31=W136,AD40,IF(E31=W135,AD42,\"\"))","v":""},{"$f":"IF(E31=W136,AE40,IF(E31=W135,AE42,\"\"))","v":""},{"$f":"IF(E31=W136,AF40,\"\")","v":""}]
[null,{"$f":"IF(I4=\"\",\"\",IF(COUNTIF(I4,\"*\"&\"戸建\"&\"*\"),\"（一戸建ての住宅）\",IF(COUNTIF(I4,\"*\"&\"共同\"&\"*\"),\"（店舗等併用住宅の住戸部分）\",\"\")))","v":""},null,null,"削減率","BEI値",null,"削減率","BEI値",null,"削減率","BEI値",null,null,null,null,null,null,null,null,null,null,null,null,null,null,"非表示（Workエリア）"]
[null,"評価手法："]
[null,"・一次エネルギー消費量",null,null,{"$f":"IF(W108=\"\",\"\",W108/100)","v":""},{"$f":"IF(W108=\"\",\"\",1-W108/100)","v":""},null,{"$f":"IF(W108=\"\",\"\",IF(E31=W135,W108/100,1-I46))","v":""},{"$f":"IF(E31=W135,1-W108/100,L22)","v":""},null,{"$f":"IF(W108=\"\",\"\",IF(E31=W135,W108/100,W111/100))","v":""},{"$f":"IF(W108=\"\",\"\",IF(E31=W135,1-W108/100,1-W111/100))","v":""}]
[null,{"$f":"IF(J5=R139,\"\",\" \"&J5)","v":""}]
[null,"・断熱性能（外皮性能）"]
[null,{"$f":"\" \"&E5","v":" "},null,null,"断 熱 性 能"]
[null,"XMLID：",null,null,"UA値","ηAC値"]
[null,{"$f":"IF(ISERROR(D132),\"\",\" \"&MID(D132,10,18))","v":" "},null,null,null,null,{"$f":"IF($P157>=3,3,\"-\")","v":"-"},{"$f":"IF($P157>=4,4,\"-\")","v":"-"},{"$f":"IF($P157>=5,5,\"-\")","v":"-"},{"$f":"IF($P157>=6,6,\"-\")","v":"-"},{"$f":"IF($P157>=7,7,\"-\")","v":"-"}]
[null,"再出力コード :",null,null,{"$f":"K24","v":""},{"$f":"L24","v":""}]
[null,{"$f":"IF(ISERROR(D132),\"\",\" \"&RIGHT(D132,19))","v":" "}]
[]
[null,"目安光熱費",null,null,"達 成 項 目"]
[null,{"$f":"IF(E32=U136,\"なし\",IF(OR(AND(E32=U135,J32=V135),AND(E32=U135,J32=V136)),\"ガス設備：\"&J32,\"\"))","v":""},null,null,"ZEH水準\n（誘導基準）",null,"ネット・ゼロ・\nエネルギー",null,"再エネ設備"]
[]
[null,null,null,null,{"$f":"IF(L65=\"達成\",\"☑\",\"-\")","v":"-"},null,{"$f":"IF(AND(E46<>\"\",X119=\"適合\"),\"☑\",\"-\")","v":"-"},{"$f":"IF(X119=\"適合\",V119,\"－\")","v":"－"},{"$f":"IF(OR(E29=Z135,E29=Z136),E29,\"\")","v":""},{"$f":"IF(AA30,\"太陽光発電\",\"－\")","v":"－"},{"$f":"IF(AND(E30=X135,AA30),I30,\"\")","v":""}]
[null,null,null,null,null,null,null,null,null,{"$f":"IF(AB30,\"太陽熱利用\",\"－\")","v":"－"},{"$f":"IF(AND(E30=X135,AB30),J30,\"\")","v":""}]
[null,null,null,null,null,null,null,null,null,{"$f":"IF(AC30,\"その他\",\"－\")","v":"－"},{"$f":"IF(AND(E30=X135,AB30),K30,\"\")","v":""}]
[]
[null,"省エネ性能","基準","一次エネルギー消費性能（GJ/年）",null,null,"断熱性能",null,null,null,null,"総合判定"]
[null,null,null,"設計一次","基準一次","判定","UA値","基準（UA）","ηAC値","基準（η）","判定"]
[null,null,"省エネ基準",{"$f":"IF(AB159=0,\"\",AB159)","v":""},{"$f":"IF(AB160=0,\"\",AB160)","v":""},{"$f":"IF(D64=\"\",\"\",IF(D64<=E64,\"達成\",\"非達成\"))","v":""},{"$f":"K24","v":""},{"$f":"P159","v":""},{"$f":"L24","v":""},{"$f":"Q159","v":""},{"$f":"IF(G64=\"\",\"\",IF(AND(G64<=H64,I64<=J64),\"達成\",\"非達成\"))","v":""},{"$f":"IF(F64=\"\",\"\",IF(AND(F64=\"達成\",K64=\"達成\"),\"達成\",\"非達成\"))","v":""}]
[null,null,"誘導基準",{"$f":"IF(AB163=0,\"\",AB163)","v":""},{"$f":"IF(AB164=0,\"\",AB164)","v":""},{"$f":"IF(D65=\"\",\"\",IF(D65<=E65,\"達成\",\"非達成\"))","v":""},{"$f":"K24","v":""},{"$f":"R159","v":""},{"$f":"L24","v":""},{"$f":"S159","v":""},{"$f":"IF(G65=\"\",\"\",IF(AND(G65<=H65,I65<=J65),\"達成\",\"非達成\"))","v":""},{"$f":"IF(F65=\"\",\"\",IF(AND(F65=\"達成\",K65=\"達成\"),\"達成\",\"非達成\"))","v":""}]
[]
[null,"特記項目","再エネ除く削減率",null,{"$f":"IF(ISERROR(W108/100),\"\",W108/100)","v":""},null,null,"参考情報","等級","設計値","基準値","表示値"]
[null,null,"再エネ含む削減率",null,{"$f":"IF(ISERROR(W111/100),\"\",W111/100)","v":""},null,null,"品確法5-1",{"$f":"S125","v":""},{"$f":"IF(K24=\"\",\"\",TEXT(K24,\"0.00\")&\"/\"&TEXT(L24,\"0.0\"))","v":""},{"$f":"IF(I68=4,Q157,IF(I68=5,S157,IF(I68=6,U157,IF(I68=7,W157,\"\"))))","v":""},{"$f":"IF(OR(I68=7,AND(K4=8,I68=6)),J68,IF(I68=\"\",\"\",\"－\"))","v":""}]
[null,null,"「ZEHマーク」",null,{"$f":"IF(H31=\"\",\"\",IF(X119=\"適合\",H31,IF(OR(H31=P135,H31=P136,H31=P137),H31&\"　不適合\",\"記載しない\")))","v":""},null,null,"品確法5-2",{"$f":"S126","v":""},{"$f":"IF(S128=\"\",\"\",TEXT(S128,\"#####.0\")&\" GJ\")","v":""},{"$f":"IF(S127=\"\",\"\",TEXT(S127,\"#####.0\")&\" GJ\")","v":""},{"$f":"IF(OR(S129=\"－\",S129=\"\"),S129,S129&\" MJ/㎡\")","v":""}]
["非表示"]
[null,"様式拡張用の予備スペース"]
[]
[]
[]
[]
[]
[]
[]
[]
[]
[]
[]
[]
[]
[]
[]
[]
[]
[]
[]
[]
[]
[]
[]
[]
[]
[]
[]
["99行まで非表示、100行から読込開始"]
[]
[null,"非表示",null,null,null,null,null,null,null,null,null,null," "]
[null,null,null,null,null,null,null,null,null,null,null,null," "]
[null,null,null,null,null,null,null,null,null,null,null,null," "]
[null,null,"抽出文字列","抽出結果","Work or 説明",null,null,null,null,null,null,null," ",null,"●旧評価書記載事項【計算結果・設計内容（現況）説明書記載事項】"]
[null,null,"第一面（1．住宅タイプの設計一次エネルギー消費量等）",null,null,null,null,null,null,null,null,null," ",null,"「ZEHマーク」に関する事項"]
[null,null,"(1)住宅",{"$f":"IF($J$100=\"\",\"\",INDEX($J$100:$J$499,MATCH(C106&\"*\",$J$100:$J$499,0),1))","v":""},{"$f":"IF(D106<>\"\",MID(D106,FIND(\"(建て方)\",D106)+6,LEN(D106)),\"\")","v":""},null,null,null,null,null,null,null," ",null,"再生可能エネルギー等除き",null,null,"設計一次エネルギー消費量（その他除く） GJ",null,null,null,null,{"$f":"IF(ISERROR(AC182),\"\",AC182)","v":0}]
[null,null,"(2)床面積",{"$f":"IF($J$100=\"\",\"\",INDEX($J$100:$J$499,MATCH(C107&\"*\",$J$100:$J$499,0)+1,1))","v":""},null,null,null,null,null,null,null,null," ",null,null,null,null,"一次エネルギー消費削減量（その他除く） GJ",null,null,null,null,{"$f":"IF(ISERROR(J22-AC182),\"\",J22-AC182)","v":""}]
[null,null,"(3)地域の区分",{"$f":"IF($J$100=\"\",\"\",INDEX($J$100:$J$499,MATCH(C108&\"*\",$J$100:$J$499,0),1))","v":""},null,null,null,null,null,null,null,null," ",null,null,null,null,"一次エネルギー消費量（その他除く）の削減率　　％",null,null,null,null,{"$f":"IF(T182=Q134,T184,IF(T182=Q135,U184,\"\"))","v":""}]
[null,null,"暖房設備","",null,null,null,null,null,null,null,null," ",null,"再生可能エネルギー等加え",null,null,"設計一次エネルギー消費量（その他除く） GJ",null,null,null,null,{"$f":"IF(ISERROR(AC184),\"\",AC184)","v":0}]
[null,null,"冷房設備","",null,null,null,null,null,null,null,null," ",null,null,null,null,"一次エネルギー消費削減量（その他除く） GJ",null,null,null,null,{"$f":"IF(ISERROR(J22-AC184),\"\",J22-AC184)","v":""}]
[null,null,"換気設備","",null,null,null,null,null,null,null,null," ",null,null,null,null,"一次エネルギー消費量（その他除く）の削減率　　％",null,null,null,null,{"$f":"IF(T182=Q134,T185,IF(T182=Q135,U185,\"\"))","v":""}]
[null,null,"給湯設備","",null,null,null,null,null,null,null,null," ",null,"誘導仕様基準（ZEH Orientedに限る）"]
[null,null,"照明設備","",null,null,null,null,null,null,null,null," "]
[null,null,"その他の設備","",null,null,null,null,null,null,null,null," "]
[null,null,"太陽光発電(PV)",{"$f":"IF(ISERROR(INDEX($J$100:$J$499,MATCH(C115&\"*\",$J$100:$J$499,0),1)),\"\",IF($J$100=\"\",\"\",INDEX($J$100:$J$499,MATCH(C115&\"*\",$J$100:$J$499,0),1)))","v":""},null,null,null,null,null,null,null,null," ",null,"●旧評価書記載事項【評価書プレビュー】"]
[null,null,"コージェネレーション設備の売電量に係る控除量",{"$f":"IF(ISERROR(INDEX($J$100:$J$499,MATCH(C116&\"*\",$J$100:$J$499,0),1)),\"\",IF($J$100=\"\",\"\",INDEX($J$100:$J$499,MATCH(C116&\"*\",$J$100:$J$499,0)-1,1)))","v":""},null,null,null,null,null,null,null,null," ",null,"一面","BEIの値（削減率）",null,null,{"$f":"L22","v":""},{"$f":"IF(S116=\"\",\"\",\"(\"&ROUND((1-S116)*100,0)&\"%削減)\")","v":""},{"$f":"IF(COUNTBLANK(S116)=1,\"\",IF(U145<>\"適合\",\"－\",IF(S116<=0.8,\"☆☆☆☆☆\",IF(AND(S116>0.8,S116<=0.85),\"☆☆☆☆\",IF(AND(S116>0.85,S116<=0.9),\"☆☆☆\",IF(AND(S116>0.9,S116<=1),\"☆☆\",IF(AND(S116>1,S116<=1.1),\"☆\",\"－\")))))))","v":""}]
[null,null,"↓",{"$f":"IF(ISERROR(INDEX($J$100:$J$499,MATCH(C116&\"*\",$J$100:$J$499,0),1)),\"\",IF($J$100=\"\",\"\",INDEX($J$100:$J$499,MATCH(C116&\"*\",$J$100:$J$499,0),1)))","v":""},null,null,null,null,null,null,null,null," ",null,null,"単位面積当たりの\n一次エネルギー消費量(MJ/㎡・年)",null,null,"設計値（その他除く）",null,{"$f":"IF(E6=\"\",\"\",ROUNDUP(H22*1000/E6,0))","v":""},"設計値（その他含む）",null,{"$f":"IF(E6=\"\",\"\",ROUNDUP((AB159*1000)/E6,0))","v":""}]
[null,null,null,null,null,null,null,null,null,null,null,null," ",null,null,null,null,null,"基準値（その他除く）",null,{"$f":"IF(E6=\"\",\"\",ROUNDUP(AB159*1000/E6,0))","v":""},"基準値（その他含む）",null,{"$f":"IF(E6=\"\",\"\",ROUNDUP(AB160*1000/E6,0))","v":""}]
[null,null,"第一面（2．判定）",null,null,null,null,null,null,null,null,null," ",null,null,"「ＺＥＨマーク」、「ゼロエネ相当」、「ZEH-Mマーク」に関する事項　／　判定",null,null,null,null,null,{"$f":"IF(H31=\"\",\"\",H31)","v":""},null,{"$f":"IF(ISERROR(IF(OR(H31=\"\",K4=\"-\",K4=\"\",K24=\"\",L24=\"\",W108=\"\",W111=\"\"),\"\",IF(OR(AND(H31=P135,K24<=K26,L24<=L25,W108>=20,W111>=100),AND(H31=P136,K24<=K26,L24<=L25,W108>=20,W111>=75,W111<100),AND(H31=P137,K24<=K26,L24<=L25,W108>=20,W111<75)),\"適合\",\"－\"))),\"－\",IF(OR(H31=\"\",K4=\"\",AND(K4<8,K24=\"\"),W108=\"\",W111=\"\"),\"\",IF(OR(AND(H31=P135,K24<=K26,L24<=L25,W108>=20,W111>=100,H18>0),AND(H31=P136,K24<=K26,L24<=L25,W108>=20,W111>=75,W111<100,H18>0),AND(H31=P137,K24<=K26,L24<=L25,W108>=20,W111<75)),\"適合\",\"－\")))","v":""}]
[null,null,"２． 判定",{"$f":"IF($J$100=\"\",\"\",INDEX($J$100:$J$499,MATCH(C120&\"*\",$J$100:$J$499,0)+8,1))","v":""},"等級4設計",null,null,null,null,null,null,null," ",null,null,"再生可能エネルギーを除いた設計一次エネルギー消費量の基準一次エネルギー消費量からの削減率",null,null,null,null,null,null,null,{"$f":"W108","v":""},"%削減"]
[null,null,"↓",{"$f":"IF($J$100=\"\",\"\",INDEX($J$100:$J$499,MATCH(C120&\"*\",$J$100:$J$499,0)+9,1))","v":""},"等級4基準",null,null,null,null,null,null,null," ",null,null,"再生可能エネルギーを加えた設計一次エネルギー消費量の基準一次エネルギー消費量からの削減率",null,null,null,null,null,null,null,{"$f":"IF(V119=P137,\"\",W111)","v":""},"%削減"]
[null,null,"↓",{"$f":"D120","v":""},"等級5設計",null,null,null,null,null,null,null," "]
[null,null,"↓",{"$f":"IF($J$100=\"\",\"\",INDEX($J$100:$J$499,MATCH(C120&\"*\",$J$100:$J$499,0)+22,1))","v":""},"等級5基準",null,null,null,null,null,null,null," "]
[null,null,"↓",{"$f":"IF($J$100=\"\",\"\",INDEX($J$100:$J$499,MATCH(C120&\"*\",$J$100:$J$499,0)+13,1))","v":""},"等級6設計",null,null,null,null,null,null,null," ",null,"●旧評価書記載事項【参考情報　品確法 5-1、5-2 等級判定】"]
[null,null,"↓",{"$f":"IF($J$100=\"\",\"\",INDEX($J$100:$J$499,MATCH(C120&\"*\",$J$100:$J$499,0)+14,1))","v":""},"等級6基準",null,null,null,null,null,null,null," ",null,"5-1　等級　（4・5・6・7）",null,null,null,{"$f":"IF(K4=\"\",\"\",IF(W158=\"適合\",7,IF(U158=\"適合\",6,IF(S158=\"適合\",5,IF(Q158=\"適合\",4,\"－\")))))","v":""}]
[null,null,null,null,null,null,null,null,null,null,null,null," ",null,"5-2　等級　（4・5・6）",null,null,null,{"$f":"IF(AB159=0,\"\",IF(AE168=\"適合\",6,IF(AC168=\"適合\",5,IF(AA168=\"適合\",4,\"－\"))))","v":""}]
[null,null,"第一面（3．BEI）",null,null,null,null,null,null,null,null,null," ",null,{"$f":"IF(S126=\"\",\"\",S126)","v":""},"基準一次エネルギー　[GJ]",null,null,{"$f":"IF(S126=6,AB164,IF(S126=5,AB162,IF(S126=4,AB160,\"\")))","v":""}]
[null,null,"一次エネルギー消費量(その他除く)",{"$f":"IF($J$100=\"\",\"\",INDEX($J$100:$J$499,MATCH(\"*\"&C128&\"*\",$J$100:$J$499,0)+4,1))","v":""},"省エネ基準：設計",null,null,null,null,null,null,null," ",null,{"$f":"IF(S126=\"\",\"\",S126)","v":""},"設計一次エネルギー　[GJ]",null,null,{"$f":"IF(S126=6,AB163,IF(S126=5,AB161,IF(S126=4,AB159,\"\")))","v":""}]
[null,null,"↓",{"$f":"IF($J$100=\"\",\"\",INDEX($J$100:$J$499,MATCH(\"*\"&C128&\"*\",$J$100:$J$499,0)+5,1))","v":""},"基準エネルギー",null,null,null,null,null,null,null," ",null,"設計一次エネルギー表示値　[MJ/㎡・年]",null,null,null,{"$f":"IF(OR(S128=\"\",E6=\"\"),\"\",IF(S126=6,ROUNDUP(S128*1000/E6,0),\"－\"))","v":""}]
[null,null,"↓",{"$f":"IF($J$100=\"\",\"\",INDEX($J$100:$J$499,MATCH(\"*\"&C128&\"*\",$J$100:$J$499,0)+6,1))","v":""},"省エネ基準：BEI",null,null,null,null,null,null,null," "]
[null,null,"↓",{"$f":"IF($J$100=\"\",\"\",INDEX($J$100:$J$499,MATCH(\"*\"&C128&\"*\",$J$100:$J$499,0)+7,1))","v":""},"誘導基準：設計・BEI",null,null,null,null,null,null,null," "]
[null,null,"XML ID",{"$f":"IF($J$100=\"\",\"\",INDEX($J$100:$J$499,MATCH(C132&\"*\",$J$100:$J$499,0),1))","v":""},null,null,null,null,null,null,null,null," ",null,"●データの入力規則"]
[null,null,null,null,null,null,null,null,null,null,null,null," ",null,null,"ＺＥＨマーク",null,"一次エネ設計","外皮設計","再エネ設備","光熱費","ガス種類","省エネ表示","容量表示","ZEH Oriented要件","再エネ設備"]
[null,null,"第二面・第三面（4．住宅タイプの仕様）",null,null,null,null,null,null,null,null,null," ",null,"H28年基準",null,"国土交通省告示第489号に準拠した計算方法"]
[null,null,"外皮性能の評価方法",{"$f":"IF($J$100=\"\",\"\",INDEX($J$100:$J$499,MATCH(\"*\"&C135&\"*\",$J$100:$J$499,0),1))","v":""},null,null,null,null,null,null,null,null," ",null,"H25年基準","『ＺＥＨ』","ネット・ゼロ・エネルギー・ハウス支援事業が採用している計算方法","性能基準（平成28年基準）","性能基準（平成28年基準）","太陽光発電","希望する","都市ガス","４段階","希望する","適合","あり"]
[null,null,"外皮平均熱貫流率",{"$f":"IF($J$100=\"\",\"\",INDEX($J$100:$J$499,MATCH(\"*\"&C136&\"*\",$J$100:$J$499,0),1))","v":""},{"$f":"IF(RIGHT(D136,1)=\"）\",LEFT(D136,FIND(\"（\",D136)-2),D136)","v":""},null,null,null,null,null,null,null," ",null,null,"Ｎｅａｒｌｙ　ＺＥＨ",null,"仕様基準（平成28年基準）","仕様基準（平成28年基準）","太陽熱利用","希望しない","ＬＰガス","６段階","希望しない","－","なし"]
[null,null,"平均日射熱取得率",{"$f":"IF($J$100=\"\",\"\",INDEX($J$100:$J$499,MATCH(\"*\"&C137&\"*\",$J$100:$J$499,0),1))","v":""},{"$f":"IF(D137=\"\",\"\",MID(D137,FIND(\"ηAC\",D137)+6,3))","v":""},null,null,null,null,null,null,null," ",null,null,"ＺＥＨ　Ｏｒｉｅｎｔｅｄ",null,"誘導仕様基準（平成28年基準）","誘導仕様基準（平成28年基準）","その他（　　　　　　　）","選択してください","選択してください",null,"選択してください",null,"選択してください"]
[null,null,"その1",{"$f":"IF($J$100=\"\",\"\",INDEX($J$100:$J$499,MATCH(C138&\"*\",$J$100:$J$499,0),1))","v":""},null,null,null,null,null,null,null,null," ",null,null,"記載しない",null,"国土交通大臣が認める方法","国土交通大臣が認める方法","－",null,"選択不要",null,"選択不要"]
[null,null,"その2",{"$f":"IF($J$100=\"\",\"\",INDEX($J$100:$J$499,MATCH(C139&\"*\",$J$100:$J$499,0),1))","v":""},null,null,null,null,null,null,null,null," ",null,null,"記載しない（※）",null,"選択するかPDFを読込んでください","選択してください"," ※　その他の再エネ利用設備名をカッコ内に記載してください"]
[null,null,"その3",{"$f":"IF($J$100=\"\",\"\",INDEX($J$100:$J$499,MATCH(C140&\"*\",$J$100:$J$499,0),1))","v":""},null,null,null,null,null,null,null,null," ",null,null," ※　ZEH Orientedの要件に適合しない場合は、ZEH Orientedを選択できません"]
[null,null,"その4",{"$f":"IF($J$100=\"\",\"\",INDEX($J$100:$J$499,MATCH(C141&\"*\",$J$100:$J$499,0),1))","v":""},null,null,null,null,null,null,null,null," ",null,null," ※　ZEH Orientedの要件に適合する場合は、ZEH Orientedの選択が可能な性能値です"]
[null,null,"J.液体集熱",{"$f":"IF($J$100=\"\",\"\",INDEX($J$100:$J$499,MATCH(C142&\"*\",$J$100:$J$499,0),1))","v":""},null,null,null,null,null,null,null,null," "]
[null,null,"K.空気集熱",{"$f":"IF($J$100=\"\",\"\",INDEX($J$100:$J$499,MATCH(C143&\"*\",$J$100:$J$499,0)+3,1))","v":""},null,null,null,null,null,null,null,null," "]
[null,null,null,null,null,null,null,null,null,null,null,null," ",null,"●地域区分・断熱性能Work"]
[null,null,"第四面（5．参考値）",null,null,null,null,null,null,null,null,null," ",null,{"$f":"K4","v":""},null,null,{"$f":"IF(ISERROR(VLOOKUP(K4,O146:R153,4)),\"\",VLOOKUP(K4,O146:R153,4))","v":""},null,"省エネ基準",{"$f":"IF(OR(AND(K4>=5,K4<=7,K24<=K25,L24<=L25),AND(K4=8,L24<=L25),AND(K4<=4,K24<=K25)),\"適合\",\"－\")","v":"－"}]
[null,null,"消費電力量[kWh] *1 ガス消費量[MJ] 灯油消費量[MJ]",{"$f":"IF(ISERROR(INDEX($J$100:$J$499,MATCH(C146&\"*\",$J$100:$J$499,0)+1,1)),\"\",IF($J$100=\"\",\"\",INDEX($J$100:$J$499,MATCH(C146&\"*\",$J$100:$J$499,0)+1,1)))","v":""},{"$f":"IF(D146<>\"\",D146,\"\")","v":""},"消費電力量",null,null,null,null,null,null," ",null,1,0.46,"-",0.4]
[null,null,null,"↓",{"$f":"IF(D146<>\"\",MID(D146,FIND(\" \",D146)+1,20),\"\")","v":""},"ガス消費量",null,null,null,null,null,null," ",null,2,0.46,"-",0.4]
[null,null,null,"↓",{"$f":"IF(D146<>\"\",MID(D146,FIND(\"★\",SUBSTITUTE(D146,\" \",\"★\",2))+1,20),\"\")","v":""},"灯油消費量",null,null,null,null,null,null," ",null,3,0.56000000000000005,"-",0.5]
[null,null,null,"↓",{"$f":"IF(D146<>\"\",MID(D146,FIND(\"★\",SUBSTITUTE(D146,\" \",\"★\",3))+1,20),\"\")","v":""},"コージェネ売電ガス控除量",null,null,null,null,null,null," ",null,4,0.75,"-",0.6]
[null,null,"コージェネレーション太陽光発電コージェネレーション太陽光発電",{"$f":"IF(ISERROR(INDEX($J$100:$J$499,MATCH(C150&\"*\",$J$100:$J$499,0)+1,1)),\"\",IF($J$100=\"\",\"\",INDEX($J$100:$J$499,MATCH(C150&\"*\",$J$100:$J$499,0)+1,1)))","v":""},{"$f":"IF(D150<>\"\",D150,\"\")","v":""},"発電CGS",null,null,null,null,null,null," ",null,5,0.87,3,0.6]
[null,null,null,"↓",{"$f":"IF(D150<>\"\",MID(D150,FIND(\" \",D150)+1,20),\"\")","v":""},"発電太陽光",null,null,null,null,null,null," ",null,6,0.87,2.8,0.6]
[null,null,null,"↓",{"$f":"IF(D150<>\"\",MID(D150,FIND(\"★\",SUBSTITUTE(D150,\" \",\"★\",2))+1,20),\"\")","v":""},"売電CGS",null,null,null,null,null,null," ",null,7,0.87,2.7,0.6]
[null,null,null,"↓",{"$f":"IF(D150<>\"\",MID(D150,FIND(\"★\",SUBSTITUTE(D150,\" \",\"★\",3))+1,20),\"\")","v":""},"売電太陽光",null,null,null,null,null,null," ",null,8,"-",6.7,"-"]
[null,null,null,null,null,null,null,null,null,null,null,null," ",null,"-","□","□","□"]
[null,null,null,null,null,null,null,null,null,null,null,null," "]
[null,null,null,null,null,null,null,null,null,null,null,null," "]
[null,null,null,null,null,null,null,null,null,null,null,null," ",null,"●5-1work",{"$f":"IF(K4=\"\",0,IF(W158=\"適合\",7,IF(U158=\"適合\",6,IF(S158=\"適合\",5,IF(Q158=\"適合\",4,0)))))","v":0},{"$f":"TEXT(P159,\"0.00\")&\"/\"&TEXT(Q159,\"0.0\")","v":"/"},null,{"$f":"TEXT(R159,\"0.00\")&\"/\"&TEXT(S159,\"0.0\")","v":"/"},null,{"$f":"TEXT(T159,\"0.00\")&\"/\"&TEXT(U159,\"0.0\")","v":"/"},null,{"$f":"TEXT(V159,\"0.00\")&\"/\"&TEXT(W159,\"0.0\")","v":"/"},null,"●5-2work"]
[null,null,null,null,null,null,null,null,null,null,null,null," ",null,"地域区分","5-1等級4",{"$f":"IF(OR(AND(K4>=5,K4<=7,K24<=P159,L24<=Q159),AND(K4=8,L24<=Q159),AND(K4<=4,K24<=P159)),\"適合\",\"－\")","v":"－"},"5-1等級5",{"$f":"IF(OR(AND(K4>=5,K4<=7,K24<=R159,L24<=S159),AND(K4=8,L24<=S159),AND(K4<=4,K24<=R159)),\"適合\",\"－\")","v":"－"},"5-1等級6",{"$f":"IF(OR(AND(K4>=5,K4<=7,K24<=T159,L24<=U159),AND(K4=8,L24<=U159),AND(K4<=4,K24<=T159)),\"適合\",\"－\")","v":"－"},"5-1等級7",{"$f":"IF(OR(AND(K4>=5,K4<=7,K24<=V159,L24<=W159),AND(K4<=4,K24<=V159)),\"適合\",\"－\")","v":"－"},null,"等級区分","PDF読込","計算値","採用値"]
[null,null,null,null,null,null,null,null,null,null,null,null," ",null,{"$f":"K4","v":""},{"$f":"IF(ISERROR(VLOOKUP(O159,O160:W167,4)),\"\",VLOOKUP(O159,O160:W167,2))","v":""},{"$f":"IF(ISERROR(VLOOKUP(O159,O160:W167,4)),\"\",VLOOKUP(O159,O160:W167,3))","v":""},{"$f":"IF(ISERROR(VLOOKUP(O159,O160:W167,4)),\"\",VLOOKUP(O159,O160:W167,4))","v":""},{"$f":"IF(ISERROR(VLOOKUP(O159,O160:W167,4)),\"\",VLOOKUP(O159,O160:W167,5))","v":""},{"$f":"IF(ISERROR(VLOOKUP(O159,O160:W167,4)),\"\",VLOOKUP(O159,O160:W167,6))","v":""},{"$f":"IF(ISERROR(VLOOKUP(O159,O160:W167,4)),\"\",VLOOKUP(O159,O160:W167,7))","v":""},{"$f":"IF(ISERROR(VLOOKUP(O159,O160:W167,4)),\"\",VLOOKUP(O159,O160:W167,8))","v":""},{"$f":"IF(ISERROR(VLOOKUP(O159,O160:W167,4)),\"\",VLOOKUP(O159,O160:W167,9))","v":""},null,"等級4設計",{"$f":"IF(OR(ISERROR(D120),D120=\"\"),\"\",-LOOKUP(1,-LEFT(MID(D120,1,15),ROW($1:$16))))","v":""},{"$f":"ROUNDUP(SUM(H8,H9,H10,H11,H12,H13,H14,H15,H16)/1000,1)","v":0},{"$f":"IF(Z159=\"\",AA159,Z159)","v":0}]
[null,null,null,null,null,null,null,null,null,null,null,null," ",null,1,0.46,"-",0.4,"-",0.28000000000000003,"-",0.2,"-",null,"等級4基準",{"$f":"IF(OR(ISERROR(D121),D121=\"\"),\"\",-LOOKUP(1,-LEFT(MID(D121,1,15),ROW($1:$16))))","v":""},{"$f":"ROUNDUP(SUM(J8,J9,J10,J11,J12,H13)/1000,1)","v":0},{"$f":"IF(Z160=\"\",AA160,Z160)","v":0}]
[null,null,null,null,null,null,null,null,null,null,null,null," ",null,2,0.46,"-",0.4,"-",0.28000000000000003,"-",0.2,"-",null,"等級5設計",{"$f":"IF(OR(ISERROR(D122),D122=\"\"),\"\",-LOOKUP(1,-LEFT(MID(D122,1,15),ROW($1:$16))))","v":""},{"$f":"ROUNDUP(SUM(H8,H9,H10,H11,H12,H13,H14,H15,H16)/1000,1)","v":0},0]
[null,null,null,null,null,null,null,null,null,null,null,null," ",null,3,0.56000000000000005,"-",0.5,"-",0.28000000000000003,"-",0.2,"-",null,"等級5基準",{"$f":"IF(OR(ISERROR(D123),D123=\"\"),\"\",-LOOKUP(1,-LEFT(MID(D123,10,15),ROW($1:$16))))","v":""},{"$f":"ROUNDUP((SUM(J8,J9,J10,J11,J12)*0.9+SUM(H13))/1000,1)","v":0},0]
[null,null,null,null,null,null,null,null,null,null,null,null," ",null,4,0.75,"-",0.6,"-",0.34,"-",0.23,"-",null,"等級6設計",{"$f":"IF(OR(ISERROR(D124),D124=\"\"),\"\",-LOOKUP(1,-LEFT(MID(D124,1,15),ROW($1:$16))))","v":""},{"$f":"ROUNDUP((SUM(H8,H9,H10,H11,H12,H13,H16,H19)-SUM(H17))/1000,1)","v":0},0]
[null,null,null,null,null,null,null,null,null,null,null,null," ",null,5,0.87,3,0.6,3,0.46,3,0.26,3,null,"等級6基準",{"$f":"IF(OR(ISERROR(D125),D125=\"\"),\"\",-LOOKUP(1,-LEFT(MID(D125,1,15),ROW($1:$16))))","v":""},{"$f":"ROUNDUP((SUM(J8,J9,J10,J11,J12)*0.8+SUM(H13))/1000,1)","v":0},0]
[null,null,null,null,null,null,null,null,null,null,null,null," ",null,6,0.87,2.8,0.6,2.8,0.46,2.8,0.26,2.8]
[null,null,null,null,null,null,null,null,null,null,null,null," ",null,7,0.87,2.7,0.6,2.7,0.46,2.7,0.26,2.7]
[null,null,null,null,null,null,null,null,null,null,null,null," ",null,8,"-",6.7,"-",6.7,"-",5.0999999999999996,"-","-",null,"●5-2等級適合"]
[null,null,null,null,null,null,null,null,null,null,null,null," ",null,"-","□","□","□","□","□","□","□","□",null,"5-2等級","等級4",{"$f":"IF(AB159<=AB160,\"適合\",\"－\")","v":"適合"},"等級5",{"$f":"IF(AB161<=AB162,\"適合\",\"－\")","v":"適合"},"等級6",{"$f":"IF(AB163<=AB164,\"適合\",\"－\")","v":"適合"}]
[null,null,null,null,null,null,null,null,null,null,null,null," "]
[null,null,null,null,null,null,null,null,null,null,null,null," "]
[null,null,null,null,null,null,null,null,null,null,null,null," ",null,"●一次エネルギー消費量（MJ値から計算）",null,null,null,null,"●PDF数値読込のエラー防止（計算時はSUM関数で二重にエラー防止）"]
[null,null,null,null,null,null,null,null,null,null,null,null," ",null,null,null,"他除","他除",null,{"$f":"IF(ISNUMBER(H14),H14,0)","v":0},"数値以外の場合は0",null,"PV自家消費"]
[null,null,null,null,null,null,null,null,null,null,null,null," ",null,null,null,"MJ","GJ",null,0,"数値以外の場合は0",null,"CGS自家消費"]
[null,null,null,null,null,null,null,null,null,null,null,null," ",null,"基準一次エネルギー",null,{"$f":"SUM(J8:L12)","v":0},{"$f":"ROUNDUP(Q174/1000,1)","v":0},null,0,"数値以外の場合は0",null,"CGS売電控除"]
[null,null,null,null,null,null,null,null,null,null,null,null," ",null,null,null,null,null,null,0,"数値以外の場合は0",null,"CGS発電"]
[null,null,null,null,null,null,null,null,null,null,null,null," ",null,"設計一次エネルギー",null,"MJ",null,null,0,"数値以外の場合は0",null,"PV発電"]
[null,null,null,null,null,null,null,null,null,null,null,null," ",null,"設備合計",null,{"$f":"SUM(H8:I12)","v":0},null,null,0,"数値以外の場合は0",null,"CGS売電",null,"●BEI Work"]
[null,null,null,null,null,null,null,null,null,null,null,null," ",null,"発電量合計",null,null,null,null,0,"数値以外の場合は0",null,"PV売電",null,"BEI 区分",null,"PDF読込","計算値","採用値"]
[null,null,null,null,null,null,null,null,null,null,null,null," ",null,"CGS発電量＋売電控除",null,{"$f":"IF(ISBLANK(H17),\"\",SUM(T175)-SUM(T177)+SUM(T174)*(-1))","v":0},null,null,null,null,null,null,null,"基準エネルギー",null,{"$f":"IF(ISERROR(-LOOKUP(1,-RIGHT(D129,ROW($1:$16)))),\"\",-LOOKUP(1,-RIGHT(D129,ROW($1:$16))))","v":""},{"$f":"R174","v":0},{"$f":"IF(AA179=\"\",IF(J22=\"\",AB179,J22),AA179)","v":0}]
[null,null,null,null,null,null,null,null,null,null,null,null," ",null,"自家消費＋CGS売電控除",null,{"$f":"IF(ISBLANK(H15),\"\",SUM(T172)*(-1)+SUM(T173)*(-1)+SUM(T174)*(-1))","v":0},null,null,null,null,null,null,null,"省エネ基準：設計",null,{"$f":"IF(ISERROR(-LOOKUP(1,-RIGHT(D128,ROW($1:$16)))),\"\",-LOOKUP(1,-RIGHT(D128,ROW($1:$16))))","v":""},{"$f":"R184","v":0},{"$f":"IF(AA180=\"\",IF(H22=\"\",AB180,H22),AA180)","v":0}]
[null,null,null,null,null,null,null,null,null,null,null,null," ",null,"総発電量(ｺｰｼﾞｪﾈ＋太陽）",null,{"$f":"IF(OR(ISBLANK(H18),E6=\"\"),\"\",SUM(T175)+SUM(T176)*(SUM(E6)/SUM(E6,J6)))","v":""},"（太陽光は非住宅と按分）",null,"●ZEH計算方法",null,null,null,null,"省エネ基準：BEI",null,{"$f":"IF(ISERROR(-LOOKUP(1,-RIGHT(D130,ROW($1:$16)))),\"\",-LOOKUP(1,-RIGHT(D130,ROW($1:$16))))","v":""},{"$f":"IF(AB179=0,\"\",ROUNDUP(AB180/AB179,2))","v":""},{"$f":"IF(AA181=\"\",IF(L22=\"\",AB181,L22),AA181)","v":""}]
[null,null,null,null,null,null,null,null,null,null,null,null," ",null,"設計一次エネ",null,null,null,null,{"$f":"Q134","v":"国土交通省告示第489号に準拠した計算方法"},null,null,null,null,"誘導基準：設計",null,{"$f":"IF(OR(ISERROR(-LOOKUP(1,-LEFT(MID(D131,17,15),ROW($1:$16)))),ISBLANK(J100)),\"\",IF(ABS(-LOOKUP(1,-LEFT(MID(D131,17,15),ROW($1:$16)))-ROUNDUP((SUM(H8:I12)+SUM(H15:I16))/1000,1))>0.5,\"※error\",-LOOKUP(1,-LEFT(MID(D131,17,15),ROW($1:$16)))))","v":""},{"$f":"R183","v":0},{"$f":"IF(AA182=\"\",AB182,AA182)","v":0}]
[null,null,null,null,null,null,null,null,null,null,null,null," ",null,"再除",null,{"$f":"Q$177-SUM(Q179)","v":0},{"$f":"ROUNDUP(Q183/1000,1)","v":0},null,"告示準拠","ZEH",null,null,null,"誘導基準：BEI",null,{"$f":"IF(ISERROR(-LOOKUP(1,-RIGHT(D131,ROW($1:$16)))),\"\",-LOOKUP(1,-RIGHT(D131,ROW($1:$16))))","v":""},{"$f":"IF(AB179=0,\"\",ROUNDUP(AB182/AB179,2))","v":""},""]
[null,null,null,null,null,null,null,null,null,null,null,null," ",null,"再含（自家消費）",null,{"$f":"Q$177-SUM(Q180)","v":0},{"$f":"ROUNDUP(Q184/1000,1)","v":0},null,{"$f":"IF(ISERROR((J22-AC182)/J22),\"\",IF(J22-AC182>=0,ROUNDDOWN((J22-AC182)/J22*100,0),ROUNDUP((J22-AC182)/J22*100,0)))","v":""},{"$f":"IF(ISERROR((Q174-Q177+Q179)/Q174),\"\",IF((Q174-Q177+Q179)>=0,ROUNDDOWN((Q174-Q177+Q179)/Q174*100,1),ROUNDUP((Q174-Q177+Q179)/Q174*100,1)))","v":""},"再エネ除く削減率",null,null,"再エネ含む：設計",null,null,{"$f":"R185","v":0},0]
[null,null,null,null,null,null,null,null,null,null,null,null," ",null,"再含（自家消費＋売電）",null,{"$f":"Q$177-SUM(Q181)","v":0},{"$f":"IF(Q185<0,ROUNDDOWN(Q185/1000,1),ROUNDUP(Q185/1000,1))","v":0},null,{"$f":"IF(ISERROR((J22-AC184)/J22),\"\",IF(J22-AC184>=0,ROUNDDOWN((J22-AC184)/J22*100,0),ROUNDUP((J22-AC184)/J22*100,0)))","v":""},{"$f":"IF(ISERROR((Q174-Q177+Q181)/Q174),\"\",IF((Q174-Q177+Q181)>=0,ROUNDDOWN((Q174-Q177+Q181)/Q174*100,1),ROUNDUP((Q174-Q177+Q181)/Q174*100,1)))","v":""},"再エネ含む削減率",null,null,"再エネ含む：BEI",null,null,{"$f":"IF(AB179=0,\"\",IF(AB184<0,ROUNDDOWN(AB184/AB179,2),ROUNDUP(AB184/AB179,2)))","v":""},""]
[null,null,null,null,null,null,null,null,null,null,null,null," "]
[null,null,null,null,null,null,null,null,null,null,null,null," "]
[null,null,null,null,null,null,null,null,null,null,null,null," ",null,"●太陽光発電容量",null,null,"●太陽熱利用の有無"]
[null,null,null,null,null,null,null,null,null,null,null,null," ",null,"その１",{"$f":"IF(ISERROR(D138),0,IF(LEN(D138)<20,0,-LOOKUP(1,-LEFT(MID(D138,20,6),ROW($1:$16)))))","v":0},null,"J.液体集熱",{"$f":"IF(ISERROR(D142),\"無し\",IF(D142=\"\",\"無し\",IF(RIGHT(D142,5)=\"設置しない\",\"無し\",\"有り\")))","v":"無し"}]
[null,null,null,null,null,null,null,null,null,null,null,null," ",null,"その２",{"$f":"IF(ISERROR(D139),0,IF(LEN(D139)<20,0,-LOOKUP(1,-LEFT(MID(D139,20,6),ROW($1:$16)))))","v":0},null,"K.空気集熱",{"$f":"IF(ISERROR(D143),\"無し\",IF(D143=\"\",\"無し\",IF(RIGHT(D143,5)=\"設置しない\",\"無し\",\"有り\")))","v":"無し"}]
[null,null,null,null,null,null,null,null,null,null,null,null," ",null,"その３",{"$f":"IF(ISERROR(D140),0,IF(LEN(D140)<20,0,-LOOKUP(1,-LEFT(MID(D140,20,6),ROW($1:$16)))))","v":0},null,"判定",{"$f":"IF(AND(S189=\"無し\",S190=\"無し\"),\"無し\",\"有り\")","v":"無し"}]
[null,null,null,null,null,null,null,null,null,null,null,null," ",null,"その４",{"$f":"IF(ISERROR(D141),0,IF(LEN(D141)<20,0,-LOOKUP(1,-LEFT(MID(D141,20,6),ROW($1:$16)))))","v":0}]
[null,null,null,null,null,null,null,null,null,null,null,null," ",null,"合計",{"$f":"SUM(P189:P192)","v":0}]
[null,null,null,null,null,null,null,null,null,null,null,null," ",null,"按分合計",{"$f":"IF(E6=\"\",\"\",ROUND(P193*SUM(E6)/SUM(E6,J6),2))","v":""}]
[null,null,null,null,null,null,null,null,null,null,null,null," "]
[null,null,null,null,null,null,null,null,null,null,null,null," "]
[null,null,null,null,null,null,null,null,null,null,null,null," "]
[null,null,null,null,null,null,null,null,null,null,null,null," "]
[null,null,null,null,null,null,null,null,null,null,null,null," "]
[null,null,null,null,null,null,null,null,null,null,null,null," "]
[null,null,null,null,null,null,null,null,null,null,null,null," "]
[null,null,null,null,null,null,null,null,null,null,null,null," "]
[null,null,null,null,null,null,null,null,null,null,null,null," "]
[null,null,null,null,null,null,null,null,null,null,null,null," "]
[null,null,null,null,null,null,null,null,null,null,null,null," "]
[null,null,null,null,null,null,null,null,null,null,null,null," "]
[null,null,null,null,null,null,null,null,null,null,null,null," "]
[null,null,null,null,null,null,null,null,null,null,null,null," "]
[null,null,null,null,null,null,null,null,null,null,null,null," "]
[null,null,null,null,null,null,null,null,null,null,null,null," "]
[null,null,null,null,null,null,null,null,null,null,null,null," "]
[null,null,null,null,null,null,null,null,null,null,null,null," ",null,"更新履歴(V7.0以降)"]
[null,null,null,null,null,null,null,null,null,null,null,null," ",null,"ver7.0","2018-07-09","入力項目変更（売電量追加）"]
[null,null,null,null,null,null,null,null,null,null,null,null," ",null,"ver7.1","2018-08-01","一次エネルギー計算結果改訂（V2.4.1以降）に伴う変更"]
[null,null,null,null,null,null,null,null,null,null,null,null," ",null,"ver7.2","2018-10-01","一次エネルギー計算結果改訂（V2.4.2以降）に伴う変更"]
[null,null,null,null,null,null,null,null,null,null,null,null," ",null,"ver8.0","2018-10-05","一次エネルギー計算結果改訂（V2.5以降）に伴う変更"]
[null,null,null,null,null,null,null,null,null,null,null,null," ",null,"ver8.1","2019-10-01","一次エネルギー計算結果改訂（V2.5.1以降）に伴う変更"]
[null,null,null,null,null,null,null,null,null,null,null,null," ",null,"ver8.2","2019-12-16","ZEH Oriented 注記変更"]
[null,null,null,null,null,null,null,null,null,null,null,null," ",null,"ver8.3","2020-02-18","地域区分記載改訂（V2.7.2以降)に伴う変更"]
[null,null,null,null,null,null,null,null,null,null,null,null," ",null,"ver8.4","2020-05-13","一次エネ計算V2.8.1に対応、住戸名称取得変更"]
[null,null,null,null,null,null,null,null,null,null,null,null," ",null,"ver8.41","2020-09-29","ZEH Oriented エネルギー削減率表記変更"]
[null,null,null,null,null,null,null,null,null,null,null,null," ",null,"ver8.5","2021-04-01","一次エネ計算V3に対応、UA値取得変更"]
[null,null,null,null,null,null,null,null,null,null,null,null," ",null,"ver.9.0","2021-08-01","ZEH適合判定条件に太陽光発電有りのチェックを追加"]
[null,null,null,null,null,null,null,null,null,null,null,null," ",null,"ver.9.2","2022-04-05","PDF表示方式対応、入力・読込修正欄変更"]
[null,null,null,null,null,null,null,null,null,null,null,null," ",null,"ver.9.3","2022-06-01","BELS評価書交付プログラムV10.3.0対応"]
[null,null,null,null,null,null,null,null,null,null,null,null," ",null,"ver.9.4","2022-07-07","動作改善"]
[null,null,null,null,null,null,null,null,null,null,null,null," ",null,"ver.9.61","2022-11-07","V3.3.x 対応"]
[null,null,null,null,null,null,null,null,null,null,null,null," ",null,"ver.9.62","2023-01-06","等級判定改修（その他含むGJ合計値使用）"]
[null,null,null,null,null,null,null,null,null,null,null,null," ",null,"ver.9.8","2023-04-03","併用住宅の5-1等級6,7表示対応"]
[null,null,null,null,null,null,null,null,null,null,null,null," ",null,"ver.9.9","2023-09-22","外皮性能評価手法表示、等級参考表示変更"]
[null,null,null,null,null,null,null,null,null,null,null,null," ",null,"ver.10.0","2024-02-26","省エネ性能表示対応、BELS新様式対応"]
[null,null,null,null,null,null,null,null,null,null,null,null," ",null,"ver.10.1","2024-05-28","WEBプロV3.3以降対応に限定、目安光熱費参考表示、ZEH水準の判定変更（誘導基準達成）"]
[null,null,null,null,null,null,null,null,null,null,null,null," "]
[null,null,null,null,null,null,null,null,null,null,null,null," "]
[null,null,null,null,null,null,null,null,null,null,null,null," "]
[null,null,null,null,null,null,null,null,null,null,null,null," "]
[null,null,null,null,null,null,null,null,null,null,null,null," "]
[null,null,null,null,null,null,null,null,null,null,null,null," "]
[null,null,null,null,null,null,null,null,null,null,null,null," "]
[null,null,null,null,null,null,null,null,null,null,null,null," "]
[null,null,null,null,null,null,null,null,null,null,null,null," "]
[null,null,null,null,null,null,null,null,null,null,null,null," "]
[null,null,null,null,null,null,null,null,null,null,null,null," "]
[null,null,null,null,null,null,null,null,null,null,null,null," "]
[null,null,null,null,null,null,null,null,null,null,null,null," "]
[null,null,null,null,null,null,null,null,null,null,null,null," "]
[null,null,null,null,null,null,null,null,null,null,null,null," "]
[null,null,null,null,null,null,null,null,null,null,null,null," "]
[null,null,null,null,null,null,null,null,null,null,null,null," "]
[null,null,null,null,null,null,null,null,null,null,null,null," "]
[null,null,null,null,null,null,null,null,null,null,null,null," "]
[null,null,null,null,null,null,null,null,null,null,null,null," "]
[null,null,null,null,null,null,null,null,null,null,null,null," "]
[null,null,null,null,null,null,null,null,null,null,null,null," "]
[null,null,null,null,null,null,null,null,null,null,null,null," "]
[null,null,null,null,null,null,null,null,null,null,null,null," "]
[null,null,null,null,null,null,null,null,null,null,null,null," "]
[null,null,null,null,null,null,null,null,null,null,null,null," "]
[null,null,null,null,null,null,null,null,null,null,null,null," "]
[null,null,null,null,null,null,null,null,null,null,null,null," "]
[null,null,null,null,null,null,null,null,null,null,null,null," "]
[null,null,null,null,null,null,null,null,null,null,null,null," "]
[null,null,null,null,null,null,null,null,null,null,null,null," "]
[null,null,null,null,null,null,null,null,null,null,null,null," "]
[null,null,null,null,null,null,null,null,null,null,null,null," "]
[null,null,null,null,null,null,null,null,null,null,null,null," "]
[null,null,null,null,null,null,null,null,null,null,null,null," "]
[null,null,null,null,null,null,null,null,null,null,null,null," "]
[null,null,null,null,null,null,null,null,null,null,null,null," "]
[null,null,null,null,null,null,null,null,null,null,null,null," "]
[null,null,null,null,null,null,null,null,null,null,null,null," "]
[null,null,null,null,null,null,null,null,null,null,null,null," "]
[null,null,null,null,null,null,null,null,null,null,null,null," "]
[null,null,null,null,null,null,null,null,null,null,null,null," "]
[null,null,null,null,null,null,null,null,null,null,null,null," "]
[null,null,null,null,null,null,null,null,null,null,null,null," "]
[null,null,null,null,null,null,null,null,null,null,null,null," "]
[null,null,null,null,null,null,null,null,null,null,null,null," "]
[null,null,null,null,null,null,null,null,null,null,null,null," "]
[null,null,null,null,null,null,null,null,null,null,null,null," "]
[null,null,null,null,null,null,null,null,null,null,null,null," "]
[null,null,null,null,null,null,null,null,null,null,null,null," "]
[null,null,null,null,null,null,null,null,null,null,null,null," "]
[null,null,null,null,null,null,null,null,null,null,null,null," "]
[null,null,null,null,null,null,null,null,null,null,null,null," "]
[null,null,null,null,null,null,null,null,null,null,null,null," "]
[null,null,null,null,null,null,null,null,null,null,null,null," "]
[null,null,null,null,null,null,null,null,null,null,null,null," "]
[null,null,null,null,null,null,null,null,null,null,null,null," "]
[null,null,null,null,null,null,null,null,null,null,null,null," "]
[null,null,null,null,null,null,null,null,null,null,null,null," "]
[null,null,null,null,null,null,null,null,null,null,null,null," "]
[null,null,null,null,null,null,null,null,null,null,null,null," "]
[null,null,null,null,null,null,null,null,null,null,null,null," "]
[null,null,null,null,null,null,null,null,null,null,null,null," "]
[null,null,null,null,null,null,null,null,null,null,null,null," "]
[null,null,null,null,null,null,null,null,null,null,null,null," "]
[null,null,null,null,null,null,null,null,null,null,null,null," "]
[null,null,null,null,null,null,null,null,null,null,null,null," "]
[null,null,null,null,null,null,null,null,null,null,null,null," "]
[null,null,null,null,null,null,null,null,null,null,null,null," "]
[null,null,null,null,null,null,null,null,null,null,null,null," "]
[null,null,null,null,null,null,null,null,null,null,null,null," "]
[null,null,null,null,null,null,null,null,null,null,null,null," "]
[null,null,null,null,null,null,null,null,null,null,null,null," "]
[null,null,null,null,null,null,null,null,null,null,null,null," "]
[null,null,null,null,null,null,null,null,null,null,null,null," "]
[null,null,null,null,null,null,null,null,null,null,null,null," "]
[null,null,null,null,null,null,null,null,null,null,null,null," "]
[null,null,null,null,null,null,null,null,null,null,null,null," "]
[null,null,null,null,null,null,null,null,null,null,null,null," "]
[null,null,null,null,null,null,null,null,null,null,null,null," "]
[null,null,null,null,null,null,null,null,null,null,null,null," "]
[null,null,null,null,null,null,null,null,null,null,null,null," "]
[null,null,null,null,null,null,null,null,null,null,null,null," "]
[null,null,null,null,null,null,null,null,null,null,null,null," "]
[null,null,null,null,null,null,null,null,null,null,null,null," "]
[null,null,null,null,null,null,null,null,null,null,null,null," "]
[null,null,null,null,null,null,null,null,null,null,null,null," "]
[null,null,null,null,null,null,null,null,null,null,null,null," "]
[null,null,null,null,null,null,null,null,null,null,null,null," "]
[null,null,null,null,null,null,null,null,null,null,null,null," "]
[null,null,null,null,null,null,null,null,null,null,null,null," "]
[null,null,null,null,null,null,null,null,null,null,null,null," "]
[null,null,null,null,null,null,null,null,null,null,null,null," "]
[null,null,null,null,null,null,null,null,null,null,null,null," "]
[null,null,null,null,null,null,null,null,null,null,null,null," "]
[null,null,null,null,null,null,null,null,null,null,null,null," "]
[null,null,null,null,null,null,null,null,null,null,null,null," "]
[null,null,null,null,null,null,null,null,null,null,null,null," "]
[null,null,null,null,null,null,null,null,null,null,null,null," "]
[null,null,null,null,null,null,null,null,null,null,null,null," "]
[null,null,null,null,null,null,null,null,null,null,null,null," "]
[null,null,null,null,null,null,null,null,null,null,null,null," "]
[null,null,null,null,null,null,null,null,null,null,null,null," "]
[null,null,null,null,null,null,null,null,null,null,null,null," "]
[null,null,null,null,null,null,null,null,null,null,null,null," "]
[null,null,null,null,null,null,null,null,null,null,null,null," "]
[null,null,null,null,null,null,null,null,null,null,null,null," "]
[null,null,null,null,null,null,null,null,null,null,null,null," "]
[null,null,null,null,null,null,null,null,null,null,null,null," "]
[null,null,null,null,null,null,null,null,null,null,null,null," "]
[null,null,null,null,null,null,null,null,null,null,null,null," "]
[null,null,null,null,null,null,null,null,null,null,null,null," "]
[null,null,null,null,null,null,null,null,null,null,null,null," "]
[null,null,null,null,null,null,null,null,null,null,null,null," "]
[null,null,null,null,null,null,null,null,null,null,null,null," "]
[null,null,null,null,null,null,null,null,null,null,null,null," "]
[null,null,null,null,null,null,null,null,null,null,null,null," "]
[null,null,null,null,null,null,null,null,null,null,null,null," "]
[null,null,null,null,null,null,null,null,null,null,null,null," "]
[null,null,null,null,null,null,null,null,null,null,null,null," "]
[null,null,null,null,null,null,null,null,null,null,null,null," "]
[null,null,null,null,null,null,null,null,null,null,null,null," "]
[null,null,null,null,null,null,null,null,null,null,null,null," "]
[null,null,null,null,null,null,null,null,null,null,null,null," "]
[null,null,null,null,null,null,null,null,null,null,null,null," "]
[null,null,null,null,null,null,null,null,null,null,null,null," "]
[null,null,null,null,null,null,null,null,null,null,null,null," "]
[null,null,null,null,null,null,null,null,null,null,null,null," "]
[null,null,null,null,null,null,null,null,null,null,null,null," "]
[null,null,null,null,null,null,null,null,null,null,null,null," "]
[null,null,null,null,null,null,null,null,null,null,null,null," "]
[null,null,null,null,null,null,null,null,null,null,null,null," "]
[null,null,null,null,null,null,null,null,null,null,null,null," "]
[null,null,null,null,null,null,null,null,null,null,null,null," "]
[null,null,null,null,null,null,null,null,null,null,null,null," "]
[null,null,null,null,null,null,null,null,null,null,null,null," "]
[null,null,null,null,null,null,null,null,null,null,null,null," "]
[null,null,null,null,null,null,null,null,null,null,null,null," "]
[null,null,null,null,null,null,null,null,null,null,null,null," "]
[null,null,null,null,null,null,null,null,null,null,null,null," "]
[null,null,null,null,null,null,null,null,null,null,null,null," "]
[null,null,null,null,null,null,null,null,null,null,null,null," "]
[null,null,null,null,null,null,null,null,null,null,null,null," "]
[null,null,null,null,null,null,null,null,null,null,null,null," "]
[null,null,null,null,null,null,null,null,null,null,null,null," "]
[null,null,null,null,null,null,null,null,null,null,null,null," "]
[null,null,null,null,null,null,null,null,null,null,null,null," "]
[null,null,null,null,null,null,null,null,null,null,null,null," "]
[null,null,null,null,null,null,null,null,null,null,null,null," "]
[null,null,null,null,null,null,null,null,null,null,null,null," "]
[null,null,null,null,null,null,null,null,null,null,null,null," "]
[null,null,null,null,null,null,null,null,null,null,null,null," "]
[null,null,null,null,null,null,null,null,null,null,null,null," "]
[null,null,null,null,null,null,null,null,null,null,null,null," "]
[null,null,null,null,null,null,null,null,null,null,null,null," "]
[null,null,null,null,null,null,null,null,null,null,null,null," "]
[null,null,null,null,null,null,null,null,null,null,null,null," "]
[null,null,null,null,null,null,null,null,null,null,null,null," "]
[null,null,null,null,null,null,null,null,null,null,null,null," "]
[null,null,null,null,null,null,null,null,null,null,null,null," "]
[null,null,null,null,null,null,null,null,null,null,null,null," "]
[null,null,null,null,null,null,null,null,null,null,null,null," "]
[null,null,null,null,null,null,null,null,null,null,null,null," "]
[null,null,null,null,null,null,null,null,null,null,null,null," "]
[null,null,null,null,null,null,null,null,null,null,null,null," "]
[null,null,null,null,null,null,null,null,null,null,null,null," "]
[null,null,null,null,null,null,null,null,null,null,null,null," "]
[null,null,null,null,null,null,null,null,null,null,null,null," "]
[null,null,null,null,null,null,null,null,null,null,null,null," "]
[null,null,null,null,null,null,null,null,null,null,null,null," "]
[null,null,null,null,null,null,null,null,null,null,null,null," "]
[null,null,null,null,null,null,null,null,null,null,null,null," "]
[null,null,null,null,null,null,null,null,null,null,null,null," "]
[null,null,null,null,null,null,null,null,null,null,null,null," "]
[null,null,null,null,null,null,null,null,null,null,null,null," "]
[null,null,null,null,null,null,null,null,null,null,null,null," "]
[null,null,null,null,null,null,null,null,null,null,null,null," "]
[null,null,null,null,null,null,null,null,null,null,null,null," "]
[null,null,null,null,null,null,null,null,null,null,null,null," "]
[null,null,null,null,null,null,null,null,null,null,null,null," "]
[null,null,null,null,null,null,null,null,null,null,null,null," "]
[null,null,null,null,null,null,null,null,null,null,null,null," "]
[null,null,null,null,null,null,null,null,null,null,null,null," "]
[null,null,null,null,null,null,null,null,null,null,null,null," "]
[null,null,null,null,null,null,null,null,null,null,null,null," "]
[null,null,null,null,null,null,null,null,null,null,null,null," "]
[null,null,null,null,null,null,null,null,null,null,null,null," "]
[null,null,null,null,null,null,null,null,null,null,null,null," "]
[null,null,null,null,null,null,null,null,null,null,null,null," "]
[null,null,null,null,null,null,null,null,null,null,null,null," "]
[null,null,null,null,null,null,null,null,null,null,null,null," "]
[null,null,null,null,null,null,null,null,null,null,null,null," "]
[null,null,null,null,null,null,null,null,null,null,null,null," "]
[null,null,null,null,null,null,null,null,null,null,null,null," "]
[null,null,null,null,null,null,null,null,null,null,null,null," "]
[null,null,null,null,null,null,null,null,null,null,null,null," "]
[null,null,null,null,null,null,null,null,null,null,null,null," "]
[null,null,null,null,null,null,null,null,null,null,null,null," "]
[null,null,null,null,null,null,null,null,null,null,null,null," "]
[null,null,null,null,null,null,null,null,null,null,null,null," "]
[null,null,null,null,null,null,null,null,null,null,null,null," "]
[null,null,null,null,null,null,null,null,null,null,null,null," "]
[null,null,null,null,null,null,null,null,null,null,null,null," "]
[null,null,null,null,null,null,null,null,null,null,null,null," "]
[null,null,null,null,null,null,null,null,null,null,null,null," "]
[null,null,null,null,null,null,null,null,null,null,null,null," "]
[null,null,null,null,null,null,null,null,null,null,null,null," "]
[null,null,null,null,null,null,null,null,null,null,null,null," "]
[null,null,null,null,null,null,null,null,null,null,null,null," "]
[null,null,null,null,null,null,null,null,null,null,null,null," "]
[null,null,null,null,null,null,null,null,null,null,null,null," "]
[null,null,null,null,null,null,null,null,null,null,null,null," "]
[null,null,null,null,null,null,null,null,null,null,null,null," "]
[null,null,null,null,null,null,null,null,null,null,null,null," "]
[null,null,null,null,null,null,null,null,null,null,null,null," "]
[null,null,null,null,null,null,null,null,null,null,null,null," "]
[null,null,null,null,null,null,null,null,null,null,null,null," "]
[null,null,null,null,null,null,null,null,null,null,null,null," "]
[null,null,null,null,null,null,null,null,null,null,null,null," "]
[null,null,null,null,null,null,null,null,null,null,null,null," "]
[null,null,null,null,null,null,null,null,null,null,null,null," "]
[null,null,null,null,null,null,null,null,null,null,null,null," "]
[null,null,null,null,null,null,null,null,null,null,null,null," "]
[null,null,null,null,null,null,null,null,null,null,null,null," "]
[null,null,null,null,null,null,null,null,null,null,null,null," "]
[null,null,null,null,null,null,null,null,null,null,null,null," "]
[null,null,null,null,null,null,null,null,null,null,null,null," "]
[null,null,null,null,null,null,null,null,null,null,null,null," "]
[null,null,null,null,null,null,null,null,null,null,null,null," "]
[null,null,null,null,null,null,null,null,null,null,null,null," "]
[null,null,null,null,null,null,null,null,null,null,null,null," "]
[null,null,null,null,null,null,null,null,null,null,null,null," "]
[null,null,null,null,null,null,null,null,null,null,null,null," "]
[null,null,null,null,null,null,null,null,null,null,null,null," "]
[null,null,null,null,null,null,null,null,null,null,null,null," "]
[null,null,null,null,null,null,null,null,null,null,null,null," "]
[null,null,null,null,null,null,null,null,null,null,null,null," "]
[null,null,null,null,null,null,null,null,null,null,null,null," "]
[null,null,null,null,null,null,null,null,null,null,null,null," "]
[null,null,null,null,null,null,null,null,null,null,null,null," "]
[null,null,null,null,null,null,null,null,null,null,null,null," "]
[]
[]
[]
[]
[]
[]
[]
[]
[]
[]
[]
[]
[]
[]
[]
[]
[]
[]
[]
[]
[]
[]
[]
[]
[]
[null,"499行まで非表示"]